[Event "DFMM-LV 2023"]
[Site "Braunfels"]
[Date "2023.06.09"]
[Round "3.25"]
[White "Birkholz, Olga"]
[Black "Rath, Alina"]
[Result "1/2-1/2"]
[Annotator "TA"]
[ECO "B13"]
[WhiteElo "2005"]
[BlackElo "2051"]
[PlyCount "51"]
[EventDate "2023.06.09"]
[EventType "team-tourn"]
[EventCountry "GER"]
[SourceTitle "playchess.com"]
[Source "ChessBase"]
[SourceQuality "1"]
[TimeControl "40/5400+30:1800+30"]

{[%evp 9,51,0,3,0,0,0,0,0,0,0,0,0,0,-12,-11,-18,-15,-16,0,-15,25,23,61,50,49,34,58,62,79,38,56,24,20,35,19,21,43,36,27,15,22,16,16,12]} 1. d4 {[%emt 0:00:03]} d5 {[%emt 0:00:09]} 2. Bf4 {[%emt 0:00:16]} c5 {[%emt 0:00:25]} 3. e3 {[%emt 0:00:25]} cxd4 {[%emt 0:00:19]} 4. exd4 {[%emt 0:00:06]} Nc6 {[%emt 0:00:11]} 5. c3 {[%emt 0:00:45]} Bf5 {[%emt 0:01:09]} 6. Bd3 {[%emt 0:00:19] B13: Caro-Kann: Exchange Variation and Panov-Botvinnik Attack.} Bxd3 {[%emt 0:00:51]} 7. Qxd3 {[%emt 0:00:01]} Nf6 {[%emt 0:00:58]} 8. Nd2 {[%emt 0:00:23]} e6 {[%emt 0:00:17]} 9. Ngf3 {[%emt 0:01:05]} Bd6 {[%emt 0:00:17]} 10. Bg3 {[%emt 0:01:19]} Rc8 {[%emt 0:01:37]} 11. O-O {[%emt 0:00:59][%cal Bh1f1,Bf1e1,Be1e3,Be3h3][%mdl 32]} Bxg3 {[%emt 0:00:51]} 12. hxg3 {[%emt 0:00:50]} O-O {[%emt 0:00:44]} 13. Rfe1 {[%emt 0:04:16] [#]} a6 $146 {[%emt 0:02:12]} ({Predecessor:} 13... Re8 14. Ne5 Nxe5 15. Rxe5 Qb6 16. Nb3 g6 17. Re2 Qd6 18. Nd2 Nd7 19. f4 a6 {0-1 Weigel,M (1600)-Ritzenthaler,S (2037) St Chely d'Aubrac op 5th 2005 (5)}) 14. Ne5 {[%emt 0:01:56]} Qd6 {[%emt 0:06:04]} (14... Nxe5 {simplifies} 15. Rxe5 g6 16. Ree1 Kg7) 15. g4 {[%emt 0:04:49]} Nd7 {[%emt 0:03:07]} 16. Nxd7 {[%emt 0:03:04]} Qxd7 {[%emt 0:00:07]} 17. Re3 {[%emt 0:00:03]} Na5 {[%emt 0:12:22]} 18. Rh3 {[%emt 0:03:46][%csl Gh3][%cal Rd3h7] [#]} g6 {[%emt 0:00:24]} 19. b3 {[%emt 0:04:18] White is more active.} f6 {[%emt 0:03:43]} 20. Re1 {[%emt 0:00:42]} Nc6 {[%emt 0:01:12]} 21. f4 {[%emt 0:05:48]} Rce8 {[%emt 0:04:11]} 22. Nf3 {[%emt 0:05:01]} Re7 {[%emt 0:10:00]} 23. Qd2 {[%emt 0:02:36]} Qc7 {[%emt 0:05:23]} 24. Rf1 {[%emt 0:08:19]} Rc8 {[%emt 0:03:36]} 25. g5 {[%emt 0:00:55]} f5 {[%emt 0:00:27]} 26. Re1 {[%emt 0:03:15] Weighted Error Value: White=0.07 (flawless) /Black=0.10 (very precise)} 1/2-1/2

[Event "DFMM-LV 2023"]
[Site "Braunfels"]
[Date "2023.06.09"]
[Round "3.26"]
[White "Skogvall, Martina"]
[Black "Stangl, Anita"]
[Result "0-1"]
[Annotator "TA"]
[ECO "C02"]
[WhiteElo "1979"]
[BlackElo "2009"]
[PlyCount "76"]
[EventDate "2023.06.09"]
[EventType "team-tourn"]
[EventCountry "GER"]
[SourceTitle "playchess.com"]
[Source "ChessBase"]
[SourceQuality "1"]
[TimeControl "40/5400+30:1800+30"]

{[%evp 13,76,0,28,22,12,-60,6,0,18,15,29,18,42,8,57,31,21,12,24,0,0,0,0,0,51,0,60,-81,26,-89,-92,-65,-68,-146,114,-215,-227,-492,-331,-320,-291,-852,-853,-5290,-3650,-29981,-29982,-29982,-29982,-5481,-1401,-29983,-29984,-29985,-29986,-29986,-29987,-29987,-29988,-29988,-29989,-29989,-29990,-29990,-29991]} 1. e4 {[%emt 0:00:01]} e6 {[%emt 0:00:04]} 2. d4 {[%emt 0:00:05]} d5 {[%emt 0:00:03]} 3. e5 {[%emt 0:00:05]} c5 {[%emt 0:00:05]} 4. Qg4 {[%emt 0:00:14]} cxd4 {[%emt 0:02:13]} 5. Bd3 {[%emt 0:00:07]} Nc6 {[%emt 0:01:25]} 6. Nf3 {[%emt 0:00:38]} f5 {[%emt 0:05:51]} 7. Qg3 {[%emt 0:00:13]} Bd7 {[%emt 0:09:09]} 8. O-O {[%emt 0:00:21][%mdl 1024] White has compensation. C02: French: Advance Variation.} Qb6 {[%emt 0:01:06] [#]} 9. b3 $146 {[%emt 0:02:16]} (9. Nbd2 $11) ({Predecessor:} 9. a3 a5 10. Nbd2 a4 11. Re1 Nh6 12. Nf1 g6 13. Bg5 Nf7 14. Bf6 Rg8 15. Ng5 Nxg5 16. Qxg5 {0-1 Novoselski,Z (2318)-Stromboli,E (2308) EU-ch Online 2300+ Final 2020 (2)}) 9... g6 {[%emt 0:08:31]} (9... Nh6 $15) 10. a3 $11 {[%emt 0:08:47] The position is equal.} a5 {[%emt 0:01:49]} 11. Re1 {[%emt 0:01:14]} Nge7 {[%emt 0:01:46]} 12. Bg5 {[%emt 0:06:19]} Bg7 {[%emt 0:03:14]} 13. h4 {[%emt 0:02:13][%cal Oh4h5]} (13. Bf6 {is more complex.} O-O 14. Qh4 Rae8 15. Nbd2) 13... Rg8 {[%emt 0:06:38]} (13... h6 $11 {was preferrable.} 14. Bxe7 Nxe7) 14. Nbd2 {[%emt 0:06:21]} h6 {[%emt 0:02:42]} 15. Bf6 {[%emt 0:09:11]} (15. Bf4 {simplifies} Bf8 16. Red1 Bg7 17. Rab1) 15... Kf7 {[%emt 0:12:34]} (15... Qc7 {simplifies} 16. Bxg7 Rxg7 17. b4 axb4 18. axb4 Rxa1 19. Rxa1 Nxb4 20. Nb3 Nxd3 21. cxd3 Rg8) 16. Qf4 {[%emt 0:06:58]} Bxf6 {[%emt 0:06:16]} 17. exf6 {[%emt 0:00:12]} Kxf6 {[%emt 0:00:20]} 18. Qxh6 {[%emt 0:01:35]} Qc7 $1 {[%emt 0:03:19]} 19. Qg5+ {[%emt 0:18:20]} ({Better is} 19. Ng5 $14 e5 20. Ndf3) 19... Kf7 {[%emt 0:00:31]} (19... Kg7 $11) 20. h5 {[%emt 0:04:23]} (20. b4 $14 {keeps the upper hand.}) 20... e5 {[%emt 0:02:23]} (20... Rh8 $17 21. h6 Ng8) 21. Nh4 {[%emt 0:04:19]} ({Don't go for} 21. Nxe5+ $2 Nxe5 22. Be2 Rg7 $19) (21. Qg3 $11 gxh5 22. Nxe5+ Nxe5 23. Qxe5 Qxe5 24. Rxe5) 21... e4 {[%emt 0:11:45][%cal Be5e4,Be4d3,Bd3d2][%mdl 32]} 22. hxg6+ {[%emt 0:02:15]} Nxg6 {[%emt 0:01:04]} 23. Nxf5 {[%emt 0:03:17]} (23. Qh5 $2 Nce7 24. Nxg6 Nxg6 25. Nxe4 dxe4 $19) (23. Nxe4 $1 $15 fxe4 24. Qxd5+ Be6 25. Qxe4) 23... Rh8 $4 {[%emt 0:00:41][%mdl 8192] [#] Really sharp!} (23... exd3 $17 24. Nh6+ {[%mdl 64] Discovered Attack, Double Attack} Kg7 25. Nxg8 Rxg8 26. cxd3 Qd6) 24. g3 $2 {[%emt 0:03:50][%mdl 8192] White does not recover from this.} exd3 $19 {[%emt 0:00:51]} 25. Nf3 $2 {[%emt 0:03:34]} (25. cxd3 {was forced.} Rh7 26. Nf3 (26. Nh4 $2 Nf4 $19)) 25... d2 {[%emt 0:08:20]} 26. Re2 {[%emt 0:00:19]} Rh7 {[%emt 0:01:27] Threatens to win with ...Rah8.} 27. N3h4 $2 {[%emt 0:10:16]} (27. N5h4 Nf4 28. Qxf4+ (28. gxf4 $2 {is the wrong capture.} Rg7 $19) 28... Qxf4 29. gxf4 Rg8+ 30. Ng5+ Rxg5+ 31. fxg5 Rxh4 32. f3) 27... Nxh4 {[%emt 0:01:10]} 28. Re7+ {[%emt 0:02:48]} Nxe7 {[%emt 0:02:06]} 29. Qxe7+ {[%emt 0:00:09]} Kg6 {[%emt 0:01:07][%cal Bf7g6,Bg6h5,Bh5h4][%mdl 32]} 30. Nxh4+ {[%emt 0:01:43] [#]} Rxh4 $1 {[%emt 0:00:41]} 31. gxh4 {[%emt 0:00:48]} (31. Qxh4 Qxc2) 31... Qxc2 {[%emt 0:03:26]} 32. Qd6+ {[%emt 0:02:17]} Kh5 {[%emt 0:01:19] Black mates.} 33. Qxd5+ {[%emt 0:00:23]} Qf5 {[%emt 0:00:35]} 34. Qxf5+ {[%emt 0:00:45]} Bxf5 {[%emt 0:00:02]} 35. Rd1 {[%emt 0:00:11]} Rg8+ {[%emt 0:00:36]} 36. Kh2 {[%emt 0:00:28]} Kxh4 {[%emt 0:00:27]} 37. Rxd2 {[%emt 0:00:04]} d3 {[%emt 0:00:12]} 38. f3 {[%emt 0:01:25]} Rc8 {[%emt 0:00:40] Beautiful play by Stangl!   Weighted Error Value: White=1.10/Black=0.42} 0-1

[Event "DFMM-LV 2023"]
[Site "Braunfels"]
[Date "2023.06.09"]
[Round "3.27"]
[White "Braun, Kristin"]
[Black "Bazzazi, Elnaz"]
[Result "1-0"]
[Annotator "NA RC COMBH"]
[ECO "C54"]
[WhiteElo "1875"]
[BlackElo "1827"]
[PlyCount "69"]
[EventDate "2023.06.09"]
[EventType "team-tourn"]
[EventCountry "GER"]
[SourceTitle "playchess.com"]
[Source "ChessBase"]
[SourceQuality "1"]
[TimeControl "40/5400+30:1800+30"]

1. e4 {[%emt 0:00:01]} e5 {[%emt 0:00:08]} 2. Nf3 {[%emt 0:00:04]} Nc6 {[%emt 0:00:07]} 3. Bc4 {[%emt 0:00:03]} Bc5 {[%emt 0:00:12]} 4. d3 {[%emt 0:00:13]} Nf6 {[%emt 0:00:42]} 5. c3 {[%emt 0:00:06]} d6 {[%emt 0:00:39]} 6. h3 {[%emt 0:01:37]} h6 {[%emt 0:00:25]} 7. Nbd2 {[%emt 0:01:14]} a6 {[%emt 0:01:07]} 8. Bb3 {[%emt 0:00:08]} O-O {[%emt 0:01:38]} 9. Rg1 {[%emt 0:06:59]} d5 {[%emt 0:01:25]} 10. g4 {[%emt 0:04:13]} dxe4 {[%emt 0:01:37]} 11. dxe4 {[%emt 0:00:11]} g5 {[%emt 0:12:08]} 12. Qe2 {[%emt 0:04:11]} b5 {[%emt 0:08:32]} 13. Nf1 {[%emt 0:03:17]} Na5 {[%emt 0:01:22]} 14. Bc2 {[%emt 0:07:26]} Nc4 {[%emt 0:02:38]} 15. Ng3 {[%emt 0:08:39]} Nh7 {[%emt 0:10:34]} 16. b3 {[%emt 0:10:45]} Nd6 {[%emt 0:01:19]} 17. Nxe5 {[%emt 0:04:08]} Qf6 {[%emt 0:01:32]} 18. Bb2 {[%emt 0:15:36]} Qxe5 {[%emt 0:02:10]} 19. O-O-O {[%emt 0:00:08]} Qf4+ {[%emt 0:05:41]} 20. Rd2 {[%emt 0:00:15]} Bb7 {[%emt 0:06:32]} 21. e5 {[%emt 0:03:24]} Rfe8 {[%emt 0:01:06]} 22. Qd3 {[%emt 0:00:25]} Nf8 {[%emt 0:06:12]} 23. exd6 {[%emt 0:02:18]} Bxf2 {[%emt 0:00:37]} 24. Nh5 {[%emt 0:02:21]} Qe3 {[%emt 0:07:59]} 25. Nf6+ {[%emt 0:06:33]} Kh8 {[%emt 0:00:25]} 26. c4 {[%emt 0:06:23]} Qxd3 {[%emt 0:00:50]} 27. Nxe8+ {[%emt 0:00:43]} Kg8 {[%emt 0:03:14]} 28. Nf6+ {[%emt 0:01:35]} Kg7 {[%emt 0:00:47]} 29. Nd5+ {[%emt 0:03:24]} f6 {[%emt 0:01:12]} 30. Bxf6+ {[%emt 0:01:49]} Kf7 {[%emt 0:00:48]} 31. Rxf2 {[%emt 0:03:28]} Qxh3 {[%emt 0:01:50]} 32. Bd4+ {[%emt 0:00:34]} Ke6 {[%emt 0:02:53]} 33. Re1+ {[%emt 0:00:14]} Kxd6 {[%emt 0:00:48]} 34. Rf6+ {[%emt 0:00:08]} Kd7 {[%emt 0:02:30]} 35. Re7+ {[%emt 0:00:04]} 1-0

[Event "DFMM-LV 2023"]
[Site "Braunfels"]
[Date "2023.06.09"]
[Round "3.28"]
[White "Von Herman, Brigitte"]
[Black "Dirmeier, Carolin"]
[Result "1/2-1/2"]
[Annotator "TA"]
[ECO "B22"]
[WhiteElo "1904"]
[BlackElo "1941"]
[PlyCount "32"]
[EventDate "2023.06.09"]
[EventType "team-tourn"]
[EventCountry "GER"]
[SourceTitle "playchess.com"]
[Source "ChessBase"]
[SourceQuality "1"]
[TimeControl "40/5400+30:1800+30"]

{[%evp 9,32,-6,-12,-16,11,17,13,1,7,2,-1,-30,-29,-16,0,0,0,0,0,0,0,0,0,0,0]} 1. e4 {[%emt 0:00:04]} c5 {[%emt 0:00:06]} 2. c3 {[%emt 0:00:12][%cal Bc2c3,Bc3d4][%mdl 32]} g6 {[%emt 0:00:06]} 3. d4 {[%emt 0:00:12]} cxd4 {[%emt 0:00:18]} 4. cxd4 {[%emt 0:00:07]} d5 {[%emt 0:00:13]} 5. Nc3 {[%emt 0:01:35]} dxe4 {[%emt 0:01:11]} 6. Bc4 {[%emt 0:00:52] B22: Sicilian: 2 c3.} Nf6 {[%emt 0:14:36]} 7. Qb3 {[%emt 0:02:10]} e6 {[%emt 0:02:42]} 8. d5 {[%emt 0:15:00][%cal Rd5e6] Repels Nc6} exd5 {[%emt 0:10:52]} 9. Nxd5 {[%emt 0:00:15] [#] Bg5 would be deadly.} ({Much worse is} 9. Bxd5 Nxd5 10. Qxd5 Qxd5 11. Nxd5 Na6 12. Nf6+ Ke7 13. Nxe4 Bf5 14. Bg5+ Ke6 $15) 9... Bg7 {[%emt 0:01:29]} 10. Ne2 {[%emt 0:15:41]} (10. Bg5 $5 {[%cal Ra1d1]} O-O 11. Rd1 $11) 10... O-O {[%emt 0:02:35]} 11. Bg5 {[%emt 0:04:19] [#]} Nc6 $146 {[%emt 0:18:33] Hoping for ...Na5. The position is equal.} ({Predecessor:} 11... Nbd7 12. Nec3 h6 13. Nxf6+ Nxf6 14. Bh4 Qb6 15. O-O Qxb3 16. Bxb3 Bd7 17. Rfe1 Bc6 {0-1 Arztmann,N (1974)-Kranzl,J (1949) AUT-ch U18 St Veit 2016 (5)}) 12. Rd1 {[%emt 0:03:15] Threatens to win with Nxf6+.} Qa5+ {[%emt 0:02:44]} 13. Bd2 {[%emt 0:03:11]} Qc5 {[%emt 0:08:57] Strongly threatening ...Nxd5.} 14. Be3 {[%emt 0:04:39]} Qa5+ {[%emt 0:01:48]} 15. Bd2 {[%emt 0:01:28]} Qc5 {[%emt 0:00:11]} 16. Be3 {[%emt 0:00:09]} Qa5+ {[%emt 0:00:14] Not much happened in this game.   Weighted Error Value: White=0.03 (flawless) /Black=0.05 (flawless)} 1/2-1/2

[Event "DFMM-LV 2023"]
[Site "Braunfels"]
[Date "2023.06.09"]
[Round "3.29"]
[White "Ankerst, Milka"]
[Black "Guder, Sibylle"]
[Result "0-1"]
[Annotator "TA"]
[ECO "B92"]
[WhiteElo "1923"]
[BlackElo "1808"]
[PlyCount "94"]
[EventDate "2023.06.09"]
[EventType "team-tourn"]
[EventCountry "GER"]
[SourceTitle "playchess.com"]
[Source "ChessBase"]
[SourceQuality "1"]
[TimeControl "40/5400+30:1800+30"]

{[%evp 21,94,-13,-18,-65,-29,-18,-23,-15,-29,-31,-19,-19,-12,-16,-27,-42,-16,-48,-14,-31,0,-53,-59,-59,-46,-44,-35,-68,-20,-18,0,-11,22,0,33,-10,0,0,2,0,47,-59,0,0,62,0,185,-328,106,0,0,-101,-17,-29,0,0,57,111,247,-818,-808,-2059,-1995,-1658,-1634,-29974,-29969,-29982,-29983,-29986,-29984,-29984,-29983,-29978,-29980]} 1. e4 {[%emt 0:00:07]} c5 {[%emt 0:00:06]} 2. Nf3 {[%emt 0:00:20]} d6 {[%emt 0:00:07]} 3. d4 {[%emt 0:00:29]} cxd4 {[%emt 0:00:05]} 4. Nxd4 {[%emt 0:00:16]} Nf6 {[%emt 0:00:05]} 5. Nc3 {[%emt 0:00:24]} a6 {[%emt 0:00:05]} 6. f3 {[%emt 0:02:00]} e5 {[%emt 0:04:12]} 7. Nb3 {[%emt 0:00:48]} Be6 {[%emt 0:00:16]} 8. Be3 {[%emt 0:01:43]} Be7 {[%emt 0:00:13]} 9. Qd2 {[%emt 0:11:04]} O-O {[%emt 0:00:16]} 10. Be2 {[%emt 0:05:50]} Qc7 {[%emt 0:16:58]} 11. O-O {[%emt 0:07:45]} Nbd7 {[%emt 0:03:47] [#]} 12. Qe1 $146 {[%emt 0:07:05] B92: Sicilian Najdorf: 6 Be2.} (12. a4 $11) ({Predecessor:} 12. Rfd1 Rac8 13. Rac1 Nb6 14. Qe1 Nc4 15. Bxc4 Qxc4 16. Nd2 Qc6 17. Nf1 Rfd8 18. Ng3 d5 19. exd5 Nxd5 20. Nxd5 Rxd5 21. Rxd5 Qxd5 {1-0 Goltsev,D (2232)-Fathy,E (2300) Titled Tuesday intern op 15th Nov Early blitz 2022 (1)}) 12... d5 {[%emt 0:09:27]} 13. exd5 {[%emt 0:00:29]} Nxd5 {[%emt 0:00:10]} (13... Bxd5 {is more complex.} 14. Qg3 Rac8 15. f4 Bb4) 14. Nxd5 {[%emt 0:01:58] Black has an edge.} Bxd5 {[%emt 0:01:14]} 15. c3 {[%emt 0:01:54]} f5 {[%emt 0:04:53]} 16. Rd1 {[%emt 0:01:08]} Be6 {[%emt 0:02:03]} 17. Kh1 {[%emt 0:01:22]} Nb6 {[%emt 0:13:38]} 18. Qf2 {[%emt 0:07:29]} Nd5 {[%emt 0:06:38]} (18... Na4 $5 {[%cal Ra4b2]}) 19. Bc1 {[%emt 0:23:22]} Nf6 {[%emt 0:07:48]} 20. Be3 {[%emt 0:00:53]} Nd5 {[%emt 0:05:28]} 21. Bc5 {[%emt 0:05:54]} (21. Bc1 $11) 21... Rac8 $15 {[%emt 0:01:13][%cal Re7c5]} 22. Bxe7 {[%emt 0:02:35]} Qxe7 {[%emt 0:03:42]} 23. Nd2 {[%emt 0:01:53]} Nf4 {[%emt 0:05:28]} 24. c4 {[%emt 0:03:09]} Bd7 {[%emt 0:01:36] Black has more active pieces.} (24... Rfd8 $15 25. b3 Bf7) 25. Rfe1 $11 {[%emt 0:00:46]} Bc6 {[%emt 0:00:55]} 26. Qe3 {[%emt 0:00:25]} Qf6 {[%emt 0:01:07]} 27. b4 {[%emt 0:01:12]} b5 {[%emt 0:03:49]} 28. c5 {[%emt 0:01:01]} g5 {[%emt 0:01:34]} 29. Bf1 {[%emt 0:01:17]} Rfe8 {[%emt 0:00:36]} 30. Nb3 {[%emt 0:01:23]} Nd5 {[%emt 0:03:42]} (30... e4 $11 31. Qd4 Qf8 32. fxe4 Rcd8) 31. Qd2 {[%emt 0:00:29]} (31. Qc1 $14) 31... Rcd8 {[%emt 0:00:16]} (31... f4 $1 $15) 32. Na5 {[%emt 0:00:23]} Ba8 {[%emt 0:00:49] [#]} (32... Nc7 $1 $11 33. Qc3 Rxd1 34. Rxd1 Bd5) 33. a4 {[%emt 0:01:26]} ({Better is} 33. c6 $1 $14 f4 (33... Bxc6 34. Nxc6) 34. Qc2) 33... bxa4 $2 {[%emt 0:01:08] [#]} (33... e4 $1 $11 34. c6 (34. axb5 $2 Nc3 $17) 34... Nc3) 34. Bxa6 $4 {[%emt 0:00:42][%mdl 8192]} g4 $2 {[%emt 0:00:10]} (34... Qxa6 $19 35. Rxe5 h6) 35. Bc4 {[%emt 0:00:33]} (35. Nb7 $16 Bxb7 36. Bxb7) 35... Kh8 {[%emt 0:00:27] And now ...gxf3 would win.} 36. b5 {[%emt 0:02:45] [#]} (36. c6 $1 $11 {remains equal.} Nf4 37. Qe3 Rxd1 38. Rxd1 Bxc6 39. Qb6 gxf3 40. g3 (40. Qxc6 $2 fxg2+ 41. Kg1 Nh3+ 42. Kxg2 Qg5+ 43. Kf1 Qg1+ 44. Ke2 Qxh2+ 45. Kd3 Nf2+ 46. Kd2 Nxd1+ 47. Kxd1 Rd8+ 48. Bd5 Qh1+ 49. Ke2 Rxd5 $19)) 36... Nf4 {[%emt 0:00:45]} ({Black should play} 36... f4 $1 $17 37. Qf2 (37. fxg4 $2 {is the wrong capture.} Ne3 $19) 37... gxf3 38. gxf3 Ne3 39. Rxd8 Qxd8) 37. Qf2 {[%emt 0:01:20] Threatens to win with c6.} gxf3 {[%emt 0:00:08]} (37... Nh3 {keeps more tension.} 38. Qf1 gxf3 39. c6 fxg2+ 40. Kxg2 Qg5+) 38. gxf3 {[%emt 0:00:35] Hoping for c6.} Rxd1 {[%emt 0:02:04]} (38... Nh3 $1 $11 39. Qg3 Qh4) 39. Rxd1 $14 {[%emt 0:00:02] c6 is the strong threat.} Rd8 {[%emt 0:00:22] Prevents c6} (39... e4 $16 40. Qe3 Ng2) 40. Rg1 $4 {[%emt 0:00:35][%mdl 8192]} (40. Rf1 $18) 40... Nh3 $1 $19 {[%emt 0:00:48][%csl LRf2,LRg1][%mdl 64] Deflection, Double Attack} 41. Qe2 {[%emt 0:34:42]} Nxg1 {[%emt 0:30:43]} 42. Kxg1 {[%emt 0:00:28]} Qg5+ {[%emt 0:00:00]} 43. Qg2 {[%emt 0:00:00]} Qc1+ {[%emt 0:00:00] Black mates.} 44. Bf1 {[%emt 0:00:00]} Rg8 {[%emt 0:03:39]} 45. Qxg8+ {[%emt 0:02:59]} Kxg8 {[%emt 0:00:00]} 46. c6 {[%emt 0:00:00]} Qe3+ {[%emt 0:00:00]} 47. Kg2 {[%emt 0:00:00]} Qd2+ {[%emt 0:00:00] Weighted Error Value: White=0.83/Black=0.43} 0-1

[Event "DFMM-LV 2023"]
[Site "Braunfels"]
[Date "2023.06.09"]
[Round "3.30"]
[White "Fock, Amina"]
[Black "Spiel, Marianne"]
[Result "1/2-1/2"]
[Annotator "NA RC COMBH"]
[ECO "C06"]
[WhiteElo "1836"]
[BlackElo "1840"]
[PlyCount "86"]
[EventDate "2023.06.09"]
[EventType "team-tourn"]
[EventCountry "GER"]
[SourceTitle "playchess.com"]
[Source "ChessBase"]
[SourceQuality "1"]
[TimeControl "40/5400+30:1800+30"]

1. e4 {[%emt 0:00:03]} e6 {[%emt 0:00:09]} 2. d4 {[%emt 0:00:06]} d5 {[%emt 0:00:07]} 3. Nd2 {[%emt 0:00:06]} Nf6 {[%emt 0:00:30]} 4. e5 {[%emt 0:00:12]} Nfd7 {[%emt 0:00:08]} 5. Bd3 {[%emt 0:00:10]} c5 {[%emt 0:00:10]} 6. c3 {[%emt 0:00:06]} Nc6 {[%emt 0:00:11]} 7. Ne2 {[%emt 0:00:16]} cxd4 {[%emt 0:00:14]} 8. cxd4 {[%emt 0:00:08]} f6 {[%emt 0:00:10]} 9. exf6 {[%emt 0:01:08]} Nxf6 {[%emt 0:00:14]} 10. Nf3 {[%emt 0:00:51]} Bd6 {[%emt 0:00:27]} 11. O-O {[%emt 0:01:03]} O-O {[%emt 0:00:19]} 12. Bf4 {[%emt 0:00:24]} Bxf4 {[%emt 0:04:08]} 13. Nxf4 {[%emt 0:00:08]} Ne4 {[%emt 0:01:59]} 14. Qc1 {[%emt 0:04:12]} Qd6 {[%emt 0:15:33]} 15. Ne2 {[%emt 0:14:43]} e5 {[%emt 0:09:08]} 16. dxe5 {[%emt 0:03:20]} Nxe5 {[%emt 0:01:31]} 17. Nxe5 {[%emt 0:01:24]} Qxe5 {[%emt 0:00:30]} 18. f3 {[%emt 0:04:04]} Nf6 {[%emt 0:02:03]} 19. Qc3 {[%emt 0:01:26]} Qg5 {[%emt 0:06:30]} 20. Kh1 {[%emt 0:13:42]} Bf5 {[%emt 0:04:11]} 21. Rad1 {[%emt 0:06:31]} Rac8 {[%emt 0:01:59]} 22. Qb3 {[%emt 0:03:35]} Bxd3 {[%emt 0:02:40]} 23. Rxd3 {[%emt 0:02:06]} b6 {[%emt 0:00:57]} 24. Nc3 {[%emt 0:01:50]} Rfd8 {[%emt 0:02:00]} 25. Rfd1 {[%emt 0:01:47]} Kh8 {[%emt 0:01:09]} 26. h3 {[%emt 0:02:31]} h6 {[%emt 0:02:36]} 27. Qa4 {[%emt 0:09:46]} a5 {[%emt 0:07:03]} 28. Qb5 {[%emt 0:01:04]} Rd6 {[%emt 0:01:43]} 29. Ne4 {[%emt 0:06:20]} Nxe4 {[%emt 0:01:40]} 30. fxe4 {[%emt 0:00:07]} Rc2 {[%emt 0:04:32]} 31. Qe8+ {[%emt 0:02:44]} Kh7 {[%emt 0:00:20]} 32. g3 {[%emt 0:00:34]} Qf6 {[%emt 0:13:58]} 33. Qh5 {[%emt 0:05:06]} Qxb2 {[%emt 0:03:19]} 34. Qf5+ {[%emt 0:00:27]} Kg8 {[%emt 0:00:21]} 35. Kg1 {[%emt 0:03:36]} Rf6 {[%emt 0:00:36]} 36. Qxd5+ {[%emt 0:00:12]} Kh7 {[%emt 0:00:31]} 37. e5 {[%emt 0:03:30]} Rh2 {[%emt 0:04:32]} 38. Qe4+ {[%emt 0:01:45]} Rg6 {[%emt 0:00:27]} 39. Rf1 {[%emt 0:02:24]} Qe2 {[%emt 0:01:09]} 40. Qxe2 {[%emt 0:04:24]} Rxe2 {[%emt 0:00:03]} 41. Rf2 {[%emt 0:06:06]} Rxe5 {[%emt 0:00:50]} 42. Kg2 {[%emt 0:02:25]} Rge6 {[%emt 0:00:49]} 43. a3 {[%emt 0:06:55]} Re3 {[%emt 0:00:46]} 1/2-1/2

[Event "DFMM-LV 2023"]
[Site "Braunfels"]
[Date "2023.06.09"]
[Round "3.31"]
[White "Braeuer, Vanessa"]
[Black "Fock, Sana"]
[Result "1-0"]
[Annotator "NA RC COMBH"]
[ECO "B23"]
[WhiteElo "1819"]
[BlackElo "1785"]
[PlyCount "89"]
[EventDate "2023.06.09"]
[EventType "team-tourn"]
[EventCountry "GER"]
[SourceTitle "playchess.com"]
[Source "ChessBase"]
[SourceQuality "1"]
[TimeControl "40/5400+30:1800+30"]

1. e4 {[%emt 0:00:01]} c5 {[%emt 0:00:06]} 2. Nc3 {[%emt 0:00:10]} d6 {[%emt 0:00:07]} 3. Bc4 {[%emt 0:00:04]} Nc6 {[%emt 0:00:39]} 4. f4 {[%emt 0:01:48]} e6 {[%emt 0:00:30]} 5. Nf3 {[%emt 0:00:15]} g6 {[%emt 0:01:00]} 6. O-O {[%emt 0:00:29]} Bg7 {[%emt 0:00:44]} 7. Qe1 {[%emt 0:03:54]} Nge7 {[%emt 0:00:38]} 8. f5 {[%emt 0:01:42]} O-O {[%emt 0:03:43]} 9. Qh4 {[%emt 0:02:25]} exf5 {[%emt 0:04:31]} 10. d3 {[%emt 0:04:04]} h5 {[%emt 0:09:33]} 11. Bg5 {[%emt 0:00:36]} Qc7 {[%emt 0:01:12]} 12. Nb5 {[%emt 0:02:12]} Qd7 {[%emt 0:01:43]} 13. Nc3 {[%emt 0:11:44]} Qc7 {[%emt 0:02:09]} 14. Rae1 {[%emt 0:01:45]} a6 {[%emt 0:06:37]} 15. a4 {[%emt 0:02:33]} b6 {[%emt 0:10:08]} 16. Ne2 {[%emt 0:06:36]} fxe4 {[%emt 0:08:08]} 17. dxe4 {[%emt 0:01:13]} b5 {[%emt 0:05:18]} 18. axb5 {[%emt 0:01:17]} axb5 {[%emt 0:00:08]} 19. Bxb5 {[%emt 0:00:15]} Ba6 {[%emt 0:06:30]} 20. c4 {[%emt 0:02:43]} Bc8 {[%emt 0:05:42]} 21. Nf4 {[%emt 0:01:32]} Bg4 {[%emt 0:04:25]} 22. Bxc6 {[%emt 0:05:07]} Nxc6 {[%emt 0:01:13]} 23. Nd5 {[%emt 0:00:17]} Qd7 {[%emt 0:06:19]} 24. Nb6 {[%emt 0:01:32]} Qe6 {[%emt 0:00:33]} 25. Nxa8 {[%emt 0:00:25]} Rxa8 {[%emt 0:00:07]} 26. Nd2 {[%emt 0:02:35]} Qe8 {[%emt 0:05:19]} 27. Bf6 {[%emt 0:00:47]} Qf8 {[%emt 0:02:38]} 28. Ra1 {[%emt 0:01:26]} Rxa1 {[%emt 0:02:28]} 29. Rxa1 {[%emt 0:03:03]} Bxf6 {[%emt 0:05:14]} 30. Qxf6 {[%emt 0:00:15]} Qg7 {[%emt 0:02:03]} 31. Ra8+ {[%emt 0:00:26]} Kh7 {[%emt 0:00:07]} 32. Qxg7+ {[%emt 0:01:22]} Kxg7 {[%emt 0:00:08]} 33. Ra6 {[%emt 0:00:20]} Bd7 {[%emt 0:02:49]} 34. Nb1 {[%emt 0:01:06]} Nd4 {[%emt 0:02:45]} 35. Rxd6 {[%emt 0:00:30]} Be6 {[%emt 0:00:25]} 36. Nd2 {[%emt 0:00:36]} Nc2 {[%emt 0:02:04]} 37. Kf2 {[%emt 0:00:23]} Nb4 {[%emt 0:00:10]} 38. e5 {[%emt 0:02:40]} Kf8 {[%emt 0:00:20]} 39. b3 {[%emt 0:00:17]} Ke7 {[%emt 0:00:07]} 40. Ne4 {[%emt 0:00:16]} Bf5 {[%emt 0:01:12]} 41. Nxc5 {[%emt 0:30:40]} Nc2 {[%emt 0:01:30]} 42. Na6 {[%emt 0:00:00]} Na3 {[%emt 0:00:42]} 43. Nc7 {[%emt 0:00:00]} Nc2 {[%emt 0:04:14]} 44. Nd5+ {[%emt 0:00:00]} Ke8 {[%emt 0:00:12]} 45. c5 {[%emt 0:00:00]} 1-0